bitfinex/quotes_SOLUSD_20241113
["timestamp","ask_amount","ask_price","bid_price","bid_amount"]
[1731509376583,6.73823167,214.8,214.6,23.902374]
[1731509376983,0.1,214.88,214.6,23.602374]
[1731509377475,0.1,214.83,214.61,20.0]
[1731509377661,0.1,214.81,214.61,20.0]
[1731509377865,0.1,214.74,214.56,12.419]
[1731509378069,0.1,214.73,214.56,12.419]
[1731509378270,37.00411711,214.76,214.56,12.419]
[1731509378271,0.1,214.75,214.56,12.419]
[1731509378876,0.1,214.72,214.56,12.419]
[1731509379180,0.1,214.68,214.56,12.419]
[1731509379379,0.1,214.7,214.56,12.419]
[1731509380070,0.1,214.67,214.56,12.419]
[1731509380658,0.1,214.69,214.56,12.419]
[1731509380860,0.1,214.65,214.56,12.419]
[1731509381064,0.1,214.65,214.49,14.01629398]
[1731509381274,0.1,214.67,214.49,12.0546]
[1731509381467,0.1,214.69,214.49,12.0546]
[1731509381667,0.2,214.73,214.6,0.12549]
[1731509381861,30.8839,214.78,214.6,0.12549]
[1731509382060,0.1,214.82,214.61,12.0546]
[1731509382262,4.6527,214.93,214.61,12.0546]
[1731509382263,0.1,214.89,214.62,20.12549]
[1731509382483,0.1,214.93,214.65,23.776884]
[1731509382786,6.7981451,214.88,214.71,23.776884]
[1731509382966,0.1,214.97,214.76,20.0]
[1731509383161,0.1,214.97,214.77,23.776884]
[1731509383683,0.2,214.95,214.77,23.776884]
[1731509383878,6.73823167,215.0,214.77,23.776884]
[1731509383879,6.83823167,214.97,214.77,23.776884]
[1731509384089,18.700862,215.01,214.78,20.0]
[1731509384270,18.600862,215.01,214.79,23.776884]
[1731509384584,18.600862,215.01,214.81,23.776884]
[1731509384772,0.1,214.97,214.81,23.776884]
[1731509385081,0.1,214.94,214.81,23.776884]
[1731509385385,0.1,214.91,214.81,23.776884]
[1731509385586,0.1,214.91,214.73,20.0]
[1731509385966,0.2,214.91,214.73,20.0]
[1731509386169,0.2,214.92,214.74,0.12549]
[1731509386367,0.1,214.92,214.74,0.12549]
[1731509386569,0.1,214.9,214.73,20.0]
[1731509386775,0.2,214.9,214.72,12.0546]
[1731509387081,0.1,214.98,214.74,0.12549]
[1731509387289,68.56531711,215.03,214.74,0.12549]
[1731509387290,0.2,215.0,214.74,0.12549]
[1731509387479,0.2,214.98,214.74,0.12549]
[1731509387676,0.1,214.95,214.74,0.12549]
[1731509387878,0.1,214.91,214.72,12.0546]
[1731509388193,0.1,214.93,214.72,12.0546]
[1731509388486,0.1,214.91,214.72,12.0546]
[1731509388680,0.1,214.95,214.72,12.0546]
[1731509388989,0.1,214.99,214.72,12.0546]
[1731509389188,0.1,214.98,214.73,20.0]
[1731509389380,0.2,215.0,214.77,20.0]
[1731509389568,18.600862,215.01,214.79,20.0]
[1731509389779,18.600862,215.01,214.81,20.0]
[1731509389970,18.600862,215.01,214.83,20.0]
[1731509390291,0.1,215.04,214.84,23.776884]
[1731509390467,0.1,215.04,214.88,23.776884]
[1731509390773,0.1,215.03,214.88,23.776884]
[1731509390967,0.1,215.03,214.85,12.2496]
[1731509390968,0.1,215.02,214.86,23.776884]
[1731509391385,0.1,215.07,214.86,23.776884]
[1731509391588,18.695,215.07,214.87,0.12549]
[1731509391779,0.1,215.05,214.87,0.12549]
[1731509392284,18.595,215.07,214.87,20.12549]
[1731509392491,32.9737,215.11,214.91,20.12549]
[1731509392670,32.9737,215.11,214.95,0.12549]
[1731509392870,18.588568,215.14,214.99,20.12549]
[1731509393082,2.14153638,215.15,215.01,0.12549]
[1731509393083,0.12549,215.15,215.01,0.12549]
[1731509393378,6.97337851,215.15,215.03,23.902374]
[1731509394878,6.97337851,215.15,215.05,23.902374]
[1731509395072,6.97337851,215.15,215.07,23.902374]
[1731509395073,0.12549,215.15,215.07,23.902374]
[1731509396994,0.12549,215.15,215.09,23.902374]
[1731509397579,0.12549,215.15,215.03,20.0]
[1731509397982,0.12549,215.15,215.04,0.12549]
[1731509399001,0.12549,215.15,215.08,0.12549]
[1731509399187,0.4393272,215.33,215.19,23.776884]
[1731509399879,0.5393272,215.33,215.19,23.776884]
[1731509400281,0.4393272,215.33,215.2,0.12549]
[1731509401199,0.5393272,215.33,215.2,0.12549]
[1731509401701,0.4393272,215.33,215.2,0.12549]
[1731509402404,0.1,215.31,215.2,0.12549]
[1731509402698,0.1,215.27,215.02,12.7507]
[1731509402895,0.1,215.22,215.02,14.77663349]
[1731509403072,0.1,215.2,215.02,14.77663349]
[1731509403277,31.9197,215.24,215.02,14.77663349]
[1731509403679,31.8197,215.24,215.02,14.77663349]
[1731509403994,31.9197,215.24,215.02,14.77663349]
[1731509404196,0.1,215.19,215.02,14.77663349]
[1731509404401,0.2,215.19,215.02,14.77663349]
[1731509404580,0.2,215.19,214.92,12.4354]
[1731509404782,0.1,215.19,214.92,12.4354]
[1731509405091,12.5485,215.19,214.92,14.42866945]
[1731509405299,12.6485,215.19,214.93,0.12549]
[1731509405485,12.5485,215.19,214.93,0.12549]
[1731509405674,33.365088,215.37,215.06,70.0]
[1731509405879,31.2081,215.37,215.1,23.64092494]
[1731509406179,31.2081,215.37,215.11,26.03965734]
[1731509406382,31.2081,215.37,215.12,0.92878473]
[1731509406679,31.2081,215.37,215.13,43.902374]
[1731509406893,31.2081,215.37,215.14,0.92880166]
[1731509407097,31.3081,215.37,215.17,23.776884]
[1731509407294,0.1,215.36,215.17,23.776884]
[1731509407493,0.1,215.3,214.98,70.0]
[1731509407792,0.1,215.35,215.05,23.99012997]
[1731509407988,31.3081,215.37,215.1,0.12549]
[1731509408376,31.2081,215.37,215.11,0.92896538]
[1731509408577,31.2081,215.37,215.07,23.10890103]
[1731509408578,0.1,215.36,215.08,14.57148991]
[1731509408783,0.1,215.31,215.1,23.776884]
[1731509408988,0.1,215.31,215.12,23.776884]
[1731509409306,0.1,215.31,215.14,23.902374]
[1731509409796,0.1,215.31,215.09,20.0]
[1731509410094,0.1,215.29,215.1,0.12549]
[1731509410488,0.1,215.31,215.1,0.12549]
[1731509410794,0.1,215.27,215.08,14.57148991]
[1731509410981,0.1,215.24,215.01,12.1501]
[1731509411296,0.2,215.24,215.01,14.15888245]
[1731509411596,0.2,215.24,215.02,0.12549]
[1731509411989,0.1,215.22,215.01,14.15888245]
[1731509412199,0.2,215.24,215.01,14.15888245]
[1731509412491,6.50185922,215.33,215.01,14.15888245]
[1731509412492,0.1,215.26,215.02,0.12549]
[1731509412699,0.1,215.31,215.04,0.12549]
[1731509412875,0.1,215.31,215.06,0.12549]
[1731509413088,0.4393272,215.33,215.08,0.12549]
[1731509413310,0.4393272,215.33,215.09,0.92899259]
[1731509413479,0.4393272,215.33,215.11,20.0]
[1731509414079,0.4393272,215.33,215.13,20.12549]
[1731509414278,0.4393272,215.33,215.17,20.0]
[1731509414578,0.4393272,215.33,215.19,0.12549]
[1731509415090,0.4393272,215.33,215.21,0.12549]
[1731509415810,0.4393272,215.33,215.01,36.08364978]
[1731509415811,0.1,215.29,215.01,36.08364978]
[1731509416094,0.1,215.28,215.01,36.08364978]
[1731509416307,0.1,215.28,215.01,12.1501]
[1731509416623,0.4393272,215.33,215.05,23.99012997]
[1731509416793,0.2,215.31,215.04,24.70474733]
[1731509416990,0.1,215.31,215.02,23.81535172]
[1731509417198,0.1,215.3,215.01,14.14172458]
[1731509417394,0.1,215.25,215.02,23.81535172]
[1731509417580,13.1586,215.24,215.01,14.14172458]
[1731509417786,13.1586,215.24,215.02,0.12549]
[1731509418192,13.1586,215.24,215.01,14.14172458]
[1731509418387,13.1586,215.24,215.02,0.9293806]
[1731509418904,13.1586,215.24,215.01,14.14172458]
[1731509418905,31.3123,215.21,215.01,14.14172458]
[1731509419080,31.3123,215.21,215.02,0.12549]
[1731509419276,31.3123,215.21,215.01,14.14172458]
[1731509419889,31.4123,215.21,215.02,23.776884]
[1731509420085,31.3123,215.21,214.94,37.03525259]
[1731509420291,31.3123,215.21,214.91,7.90290235]
[1731509420292,0.1,215.13,214.92,2.02936179]
[1731509420491,0.1,215.15,214.87,13.1246]
[1731509420705,0.1,215.11,214.9,13.1246]
[1731509420891,31.4123,215.21,214.91,23.53475663]
[1731509421085,31.3123,215.21,214.95,0.12549]
[1731509421389,0.1,215.18,214.9,36.53074638]
[1731509421582,0.1,215.18,214.91,0.12549]
[1731509421791,0.1,215.2,214.93,0.12549]
[1731509421988,31.3123,215.21,214.95,20.12549]
[1731509422202,0.1,215.2,214.97,0.12549]
[1731509422401,0.1,215.18,214.97,0.12549]
[1731509422699,0.1,215.18,214.94,23.902374]
[1731509423607,0.2,215.18,214.94,23.776884]
[1731509423815,0.1,215.15,214.9,15.08247997]
[1731509424126,0.1,215.17,214.9,38.48862635]
[1731509424294,0.1,215.17,214.91,0.92981827]
[1731509424691,31.3123,215.21,214.92,23.92083613]
[1731509424894,0.1,215.2,214.92,43.92083613]
[1731509425093,0.1,215.2,214.97,23.776884]
[1731509425291,0.1,215.15,214.99,23.776884]
[1731509425498,31.3123,215.21,214.9,15.08247997]
[1731509425499,0.1,215.07,214.9,15.08247997]
[1731509425889,30.3136,215.09,214.9,15.08247997]
[1731509426097,0.1,215.08,214.9,1.95787997]
[1731509426305,30.3136,215.09,214.86,18.588686]
[1731509427404,30.3136,215.09,214.81,23.0146301]
[1731509427405,0.1,215.08,214.81,23.0146301]
[1731509427611,0.2,215.08,214.81,23.0146301]
[1731509427989,30.7293,215.06,214.8,2.04376656]
[1731509428189,30.7293,215.06,214.61,23.80789203]
[1731509428190,0.1,214.92,214.61,23.80789203]
[1731509428417,0.1,214.9,214.62,0.72729065]
[1731509428615,0.1,214.93,214.64,0.12549]
[1731509428788,0.1,214.93,214.63,70.0]
[1731509429193,0.1,214.93,214.61,0.93076782]
[1731509429413,18.602786,214.93,214.67,23.48716286]
[1731509429596,18.602786,214.93,214.66,94.25871218]
[1731509430212,12.3575,214.95,214.66,94.25871218]
[1731509430410,12.3575,214.95,214.67,0.12549]
[1731509430596,12.3575,214.95,214.69,23.902374]
[1731509430795,12.4575,214.95,214.64,23.87454389]
[1731509431016,0.1,214.9,214.6,94.45099685]
[1731509431312,0.1,214.88,214.56,23.46088255]
[1731509431656,12.3575,214.95,214.68,70.0]
[1731509431920,12.3575,214.95,214.7,0.12549]
[1731509432098,12.3575,214.95,214.72,70.12549]
[1731509432292,12.3575,214.95,214.75,23.27167835]
[1731509432594,18.592618,215.07,214.99,20.0]
[1731509432793,12.6788,215.12,214.99,20.0]
[1731509433015,12.6788,215.12,215.0,5.7098648]
[1731509433200,12.6788,215.12,214.99,20.0]
[1731509433397,0.1,215.06,214.99,12.6788]
[1731509433615,0.1,215.1,214.78,93.29540075]
[1731509433922,0.1,215.1,214.82,0.12549]
[1731509434099,0.1,215.1,214.81,20.0]
[1731509434100,12.7788,215.12,214.86,0.12549]
[1731509434415,0.1,215.1,214.86,0.12549]
[1731509434799,12.6788,215.12,214.91,20.12549]
[1731509434992,12.6788,215.12,214.96,23.776884]
[1731509434993,12.7788,215.12,214.96,23.776884]
[1731509435196,0.1,215.08,214.96,23.776884]
[1731509435417,33.3222,215.07,214.96,23.776884]
[1731509435795,33.3222,215.07,214.97,0.12549]
[1731509436639,33.3222,215.07,214.8,20.0]
[1731509436798,12.6788,215.12,214.95,0.12549]
[1731509437005,12.6788,215.12,214.97,0.12549]
[1731509437333,12.6788,215.12,214.99,20.12549]
[1731509437617,31.3707,215.27,215.16,0.12549]
[1731509437820,0.1,215.26,215.16,0.12549]
[1731509438317,0.1,215.19,215.04,20.0]
[1731509438516,0.1,215.23,214.91,88.582542]
[1731509438517,0.1,215.21,215.08,0.12549]
[1731509438717,0.1,215.21,214.87,23.9205321]
[1731509438718,0.1,215.2,214.87,23.9205321]
[1731509439024,0.1,215.17,214.91,23.11642236]
[1731509439212,0.1,215.17,214.93,0.12549]
[1731509439617,0.1,215.18,214.94,20.0]
[1731509439805,0.1,215.18,214.95,23.07128439]
[1731509440003,0.1,215.18,214.95,23.776884]
[1731509440224,0.1,215.16,214.97,23.902374]
[1731509440423,0.1,215.16,214.99,23.902374]
[1731509440725,12.5599,215.15,215.07,0.12549]
[1731509440926,12.5599,215.15,215.09,23.902374]
[1731509441103,10.82493862,215.15,215.09,23.902374]
[1731509442628,10.82493862,215.15,215.04,1.96567402]
[1731509442802,10.82493862,215.15,215.05,0.12549]
[1731509443408,10.82493862,215.15,214.96,0.12549]
[1731509443608,10.82493862,215.15,214.92,6.48305591]
[1731509443808,10.82493862,215.15,214.93,0.92976055]
[1731509444119,10.82493862,215.15,214.94,6.60854591]
[1731509444429,31.011,215.12,214.88,6.48305591]
[1731509444626,0.1,215.08,214.88,6.48305591]
[1731509444824,0.2,215.1,214.86,2.03027925]
[1731509445122,0.2,215.1,214.85,6.48305591]
[1731509445123,0.1,215.1,214.87,0.12549]
[1731509445326,31.111,215.12,214.87,0.12549]
[1731509445519,0.1,215.11,214.87,6.60854591]
[1731509445721,31.011,215.12,214.91,0.12549]
[1731509446033,31.111,215.12,214.93,23.776884]
[1731509446222,0.1,215.1,214.93,23.776884]
[1731509446418,31.011,215.12,214.97,0.12549]
[1731509446617,31.011,215.12,214.95,23.902374]
[1731509446618,31.011,215.12,215.01,0.12549]
[1731509446931,0.1,215.28,215.16,23.902374]
[1731509446932,0.1,215.25,215.16,23.902374]
[1731509447152,0.1,215.28,215.16,0.12549]
[1731509447319,0.1,215.34,215.02,26.48305591]
[1731509447320,0.1,215.3,215.09,6.48305591]
[1731509447629,0.1,215.24,215.12,23.776884]
[1731509447809,0.1,215.24,215.14,23.902374]
[1731509447810,0.1,215.21,215.14,23.902374]
[1731509448211,0.1,215.23,215.14,23.902374]
[1731509448927,0.1,215.21,215.14,23.902374]
[1731509449728,0.1,215.19,215.14,23.902374]
[1731509449926,31.9285,215.2,215.14,23.902374]
[1731509449927,44.8164,215.2,215.14,23.902374]
[1731509450225,44.8164,215.2,215.16,23.902374]
[1731509450429,0.1,215.27,215.16,23.902374]
[1731509450931,44.8164,215.28,215.18,23.902374]
[1731509451128,44.8164,215.28,215.2,23.902374]
[1731509451329,44.9164,215.28,215.2,23.902374]
[1731509451909,0.1,215.24,215.14,1.98110439]
[1731509452114,0.1,215.24,215.09,0.12549]
[1731509452615,0.1,215.21,215.09,0.12549]
[1731509452809,0.1,215.21,215.07,2.0163816]
[1731509453137,0.1,215.19,215.0,6.48305591]
[1731509453634,0.1,215.23,215.0,1.97552381]
[1731509453820,0.1,215.25,215.01,6.48305591]
[1731509454016,0.1,215.16,215.01,6.48305591]
[1731509454426,0.1,215.12,214.95,6.48305591]
[1731509454642,0.2,215.12,214.95,6.48305591]
[1731509454818,0.1,215.12,214.95,6.48305591]
[1731509455136,0.1,215.14,214.95,6.48305591]
[1731509455437,0.1,215.09,214.95,8.48267891]
[1731509455629,0.1,215.15,214.95,1.999623]
[1731509455630,0.1,215.11,214.95,1.999623]
[1731509455939,0.1,215.11,214.92,0.12549]
[1731509456120,0.1,215.11,214.92,6.48305591]
[1731509456318,0.1,215.09,214.92,6.48305591]
[1731509456526,0.1,215.09,214.93,0.12549]
[1731509456719,0.1,215.09,214.92,6.48305591]
[1731509456920,0.1,215.09,214.93,43.776884]
[1731509457130,0.1,215.09,214.94,0.12549]
[1731509457626,0.1,215.13,214.94,0.12549]
[1731509458419,0.2,215.13,214.94,0.12549]
[1731509458728,0.1,215.15,214.96,20.12549]
[1731509458933,0.1,215.15,215.02,0.12549]
[1731509459139,0.1,215.15,215.04,0.12549]
[1731509459434,0.1,215.15,215.06,20.12549]
[1731509459843,0.1,215.15,215.08,0.12549]
[1731509460538,45.2009,215.16,215.08,0.12549]
[1731509460842,45.2009,215.16,215.1,0.12549]
[1731509461426,45.2009,215.16,215.11,23.776884]
[1731509461743,45.2009,215.16,215.12,0.12549]
[1731509462037,44.4386,215.24,215.12,20.12549]
[1731509462240,44.4386,215.24,215.16,0.12549]
[1731509462936,0.1,215.28,215.2,0.12549]
[1731509463143,0.1,215.31,215.2,20.12549]
[1731509463343,0.1,215.3,215.22,0.12549]
[1731509463845,0.1,215.31,215.22,0.12549]
[1731509464730,44.4386,215.32,215.22,0.12549]
[1731509465121,44.5386,215.32,215.24,0.12549]
[1731509465323,0.1,215.27,215.23,23.776884]
[1731509465527,0.1,215.27,215.07,6.48305591]
[1731509465843,0.1,215.28,215.07,6.48305591]
[1731509466027,0.1,215.28,215.09,0.12549]
[1731509466335,31.4886,215.32,215.11,0.12549]
[1731509466537,31.4886,215.32,215.11,6.60854591]
[1731509466739,31.4886,215.32,215.13,23.902374]
[1731509466922,31.4886,215.32,215.18,20.0]
[1731509467123,31.4886,215.32,215.21,23.776884]
[1731509467346,31.4886,215.32,215.22,20.0]
[1731509467647,0.5393272,215.33,215.22,20.0]
[1731509467648,0.4393272,215.33,215.24,0.12549]
[1731509467844,0.4393272,215.33,215.26,0.12549]
[1731509468141,0.4393272,215.33,215.3,0.12549]
[1731509468642,0.3139272,215.33,215.3,0.12549]
[1731509468847,0.3139272,215.33,215.31,23.776884]
[1731509469159,30.8839,215.4,215.38,23.776884]
[1731509469346,0.1,215.44,215.38,23.776884]
[1731509469640,13.1848,215.46,215.39,0.12549]
[1731509469840,0.1,215.52,215.39,0.12549]
[1731509470140,13.6241272,215.54,215.43,20.12549]
[1731509470325,13.7241272,215.54,215.44,23.776884]
[1731509470522,0.1,215.51,215.44,23.776884]
[1731509471035,0.1,215.48,215.44,23.776884]
[1731509471241,0.1,215.51,215.45,0.12549]
[1731509471943,0.1,215.5,215.43,23.902374]
[1731509472138,13.6241272,215.54,215.43,23.902374]
[1731509472344,13.6241272,215.54,215.45,0.12549]
[1731509472739,13.6241272,215.54,215.45,23.902374]
[1731509472933,0.4393272,215.54,215.47,23.776884]
[1731509473132,0.4393272,215.54,215.48,0.12549]
[1731509475429,0.4393272,215.54,215.49,23.776884]
[1731509477936,0.4393272,215.54,215.49,47.14750535]
[1731509478955,0.4393272,215.54,215.49,23.776884]
[1731509479243,0.4393272,215.54,215.47,1.97426046]
[1731509479449,0.4393272,215.54,215.39,23.05754039]
[1731509479751,0.4393272,215.54,215.4,23.19516139]
[1731509479929,0.4393272,215.54,215.41,23.93850423]
[1731509480131,0.4393272,215.54,215.43,23.44941361]
[1731509480531,0.4393272,215.54,215.48,23.39978337]
[1731509480754,0.4393272,215.54,215.49,20.0]
[1731509481132,0.4393272,215.54,215.44,23.03529853]
[1731509481332,0.4393272,215.54,215.47,20.0]
[1731509481729,0.4393272,215.54,215.48,23.39978337]
[1731509481952,0.4393272,215.54,215.49,20.0]
[1731509482440,0.4393272,215.54,215.45,20.0]
[1731509482748,0.4393272,215.54,215.49,20.0]
[1731509483364,0.4393272,215.54,215.48,23.61575313]
[1731509483546,0.4393272,215.54,215.49,48.71991312]
[1731509483858,0.4393272,215.54,215.49,25.17739935]
[1731509484435,0.4393272,215.54,215.49,20.0]
[1731509484844,0.4393272,215.54,215.47,43.65118114]
[1731509485034,0.4393272,215.54,215.48,23.17893709]
[1731509485252,0.4393272,215.54,215.47,20.0]
[1731509485435,0.4393272,215.54,215.42,23.08168618]
[1731509485838,0.4393272,215.54,215.39,5.34690906]
[1731509486146,23.876884,215.53,215.3,28.51948793]
[1731509486342,0.4393272,215.54,215.3,23.71601187]
[1731509486637,23.876884,215.53,215.32,23.4895825]
[1731509486843,0.4393272,215.54,215.34,23.09356542]
[1731509487045,0.4393272,215.54,215.34,28.44047448]
[1731509487335,0.4393272,215.54,215.36,23.09290719]
[1731509488361,0.4393272,215.54,215.39,0.12549]
[1731509488567,0.4393272,215.54,215.41,0.12549]
[1731509488860,0.4393272,215.54,215.32,27.84]
[1731509488861,0.4393272,215.54,215.45,0.12549]
[1731509489035,0.4393272,215.54,215.41,20.0]
[1731509489242,0.4393272,215.54,215.42,23.902374]
[1731509489448,0.4393272,215.54,215.44,135.526884]
[1731509489741,0.4393272,215.54,215.49,23.78294231]
[1731509489943,0.4393272,215.54,215.49,4.632]
[1731509490249,0.4393272,215.54,215.49,29.19768289]
[1731509490455,0.4393272,215.54,215.49,29.1009805]
[1731509490647,0.4393272,215.54,215.49,23.6618255]
[1731509491047,0.4393272,215.54,215.49,28.92921154]
[1731509491347,0.4393272,215.54,215.49,23.99515551]
[1731509491549,0.4393272,215.54,215.49,23.00491752]
[1731509492045,0.4393272,215.54,215.49,23.59164572]
[1731509495661,0.4393272,215.54,215.49,93.17226592]
[1731509495852,0.4393272,215.54,215.49,59.43684719]
[1731509496058,0.4393272,215.54,215.49,64.92226592]
[1731509496370,0.4393272,215.54,215.49,23.17226592]
[1731509496755,0.4393272,215.54,215.49,28.36650359]
[1731509496944,0.4393272,215.54,215.49,25.19529322]
[1731509497549,0.4393272,215.54,215.49,29.35130426]
[1731509498055,0.4393272,215.54,215.49,25.19529322]
[1731509498260,0.4393272,215.54,215.49,29.05114791]
[1731509498572,0.4393272,215.54,215.49,25.19529322]
[1731509498871,0.4393272,215.54,215.49,28.77266951]
[1731509499758,0.4393272,215.54,215.49,25.19529322]
[1731509500858,0.4393272,215.54,215.49,23.17226592]
[1731509501057,0.4393272,215.54,215.46,23.73550805]
[1731509501254,0.4393272,215.54,215.47,23.97528241]
[1731509501468,0.4393272,215.54,215.48,37.25520939]
[1731509501650,0.4393272,215.54,215.49,4.31175336]
[1731509501973,0.4393272,215.54,215.45,1.96807344]
[1731509502172,0.4393272,215.54,215.46,23.67302915]
[1731509502379,0.4393272,215.54,215.39,4.00051564]
[1731509502380,0.4393272,215.54,215.49,13.91]
[1731509503086,0.4393272,215.54,215.49,15.9247432]
[1731509504972,0.4393272,215.54,215.49,178.0247432]
[1731509505874,0.4393272,215.54,215.49,205.8647432]
[1731509506081,0.4393272,215.54,215.49,181.97664338]
[1731509506375,0.4393272,215.54,215.49,182.35404543]
[1731509506571,0.4393272,215.54,215.49,178.0247432]
[1731509506776,0.4393272,215.54,215.49,181.55910485]
[1731509506958,0.4393272,215.54,215.49,201.14348994]
[1731509508379,0.4393272,215.54,215.49,203.76219658]
[1731509508563,0.4393272,215.54,215.49,201.14348994]
[1731509510086,0.4393272,215.54,215.49,39.04348994]
[1731509511367,0.4393272,215.54,215.49,201.14348994]
[1731509512579,0.4393272,215.54,215.49,199.12874674]
[1731509513086,0.4393272,215.54,215.49,201.10853926]
[1731509514563,0.4393272,215.54,215.49,199.12874674]
[1731509514763,0.4393272,215.54,215.49,201.15869823]
[1731509518373,0.4193,215.89,215.49,201.15869823]
[1731509518374,0.4193,215.89,215.58,4.632]
[1731509518568,0.4193,215.89,215.77,13.91]
[1731509518767,0.4193,215.89,215.82,36.9125296]
[1731509518970,0.4193,215.89,215.84,23.63964724]
[1731509519168,0.32009,215.89,215.83,23.1518934]
[1731509519394,0.32009,215.89,215.83,190.15083291]
[1731509519570,0.32009,215.89,215.88,23.4960364]
[1731509519770,0.4393272,215.97,215.89,23.6955277]
[1731509520091,27.84,216.03,215.93,0.12549]
[1731509520302,27.84,216.03,215.95,0.12549]
[1731509520587,27.84,216.03,215.96,5.49910618]
[1731509520889,27.84,216.02,215.97,2.94187722]
[1731509521088,27.84,216.02,215.97,188.32998247]
[1731509521290,27.84,216.02,215.98,3.32089618]
[1731509521477,27.84,216.02,215.99,2.4540136]
[1731509521794,27.84,216.01,215.99,2.4540136]
[1731509521991,27.84,216.01,215.99,162.1]
[1731509522292,27.94,216.01,215.99,159.7617]
[1731509522479,27.84,216.01,215.99,159.7617]
[1731509522673,27.84,216.0,215.99,159.88719]
[1731509523178,27.84,216.0,215.99,141.87638209]
[1731509523773,0.1,216.05,215.99,136.5417]
[1731509524087,0.1,216.05,215.95,2.13635886]
[1731509524300,0.1,216.01,215.95,2.13635886]
[1731509524495,0.1,216.03,215.96,5.12712976]
[1731509524805,27.84,216.08,215.97,23.28810525]
[1731509525091,0.1,216.05,215.98,5.69768531]
[1731509525295,27.84,216.08,215.98,5.69768531]
[1731509525988,0.1,216.05,215.98,5.69768531]
[1731509526387,27.94,216.08,215.99,23.62478278]
[1731509526591,0.1,216.04,215.99,23.62478278]
[1731509526776,27.84,216.08,215.98,4.83667501]
[1731509526777,0.1,216.06,215.98,33.45394332]
[1731509526976,0.1,216.06,215.98,185.95842514]
[1731509527177,0.1,216.06,215.99,0.12549]
[1731509527382,0.1,216.06,215.99,4.54063894]
[1731509527603,27.84,216.08,215.99,164.21214894]
[1731509527796,27.84,216.08,215.99,168.69950853]
[1731509528176,27.84,216.08,215.99,164.21214894]
[1731509528487,27.84,216.08,215.99,182.9339917]
[1731509528676,27.84,216.08,215.99,205.02913498]
[1731509529090,27.84,216.08,215.99,181.52040307]
[1731509529380,0.1,216.01,215.99,162.1]
[1731509529874,0.1,216.06,215.99,162.1]
[1731509530086,0.1,215.96,215.95,2.13635886]
[1731509530291,0.1,216.02,215.95,164.23635886]
[1731509530487,33.2388,216.04,215.95,2.13635886]
[1731509530805,33.1388,216.04,215.95,2.13635886]
[1731509530985,33.1388,216.04,215.95,164.23635886]
[1731509531304,33.1388,216.04,215.96,4.71375949]
[1731509531594,0.1,216.01,215.95,2.13635886]
[1731509531800,0.1,216.03,215.95,2.13635886]
[1731509531980,0.1,216.03,215.95,7.33147946]
[1731509532293,33.1388,216.04,215.97,0.12549]
[1731509532497,0.1,216.0,215.95,2.13635886]
[1731509532686,33.1388,216.04,215.96,5.33840068]
[1731509532892,33.1388,216.04,215.96,165.09940068]
[1731509533199,289.72679286,216.09,215.97,2.17007222]
[1731509533579,0.1,216.07,215.97,2.17007222]
[1731509533881,289.72679286,216.09,215.97,164.27007222]
[1731509534479,289.72679286,216.09,215.98,23.52950468]
[1731509534685,289.72679286,216.09,215.99,0.12549]
[1731509534882,276.49839286,216.09,215.99,162.22549]
[1731509535894,0.1,216.08,215.99,162.22549]
[1731509536086,276.49839286,216.09,215.99,162.22549]
[1731509536605,0.1,216.06,215.99,162.22549]
[1731509536894,0.1,216.08,215.99,157.461]
[1731509537211,0.1,216.01,215.99,157.461]